bitfinex/quotes_BTCUSD_20251012
["timestamp","ask_amount","ask_price","bid_price","bid_amount"]
[1760251889236,0.7764494,112120.0,112110.0,0.00347907]
[1760251889652,0.759722,112120.0,112110.0,0.00347907]
[1760251889864,1.099722,112120.0,112110.0,0.00347907]
[1760251890388,1.1164573,112120.0,112110.0,0.00347907]
[1760251893327,1.20517664,112120.0,112110.0,0.00347907]
[1760251894413,1.1164573,112120.0,112110.0,0.00347907]
[1760251894651,1.1164573,112120.0,112110.0,0.03276907]
[1760251894967,1.1164573,112120.0,112110.0,0.01613907]
[1760251895530,1.1164573,112120.0,112110.0,0.00347907]
[1760251897346,1.697799,112120.0,112110.0,0.00347907]
[1760251897548,2.36770548,112120.0,112110.0,0.00347907]
[1760251898781,6.33127648,112120.0,112110.0,0.00347907]
[1760251898989,6.24255714,112120.0,112110.0,0.00347907]
[1760251899202,2.27898614,112120.0,112110.0,0.00347907]
[1760251899408,6.28340004,112120.0,112110.0,0.00347907]
[1760251900544,2.31982904,112120.0,112110.0,0.00347907]
[1760251900853,6.28340004,112120.0,112110.0,0.00347907]
[1760251901043,6.37211938,112120.0,112110.0,0.00347907]
[1760251901246,2.40854838,112120.0,112110.0,0.00347907]
[1760251901496,6.37211938,112120.0,112110.0,0.00347907]
[1760251901858,6.39141103,112120.0,112110.0,0.00347907]
[1760251902278,2.42758898,112120.0,112110.0,0.00347907]
[1760251902485,6.39115998,112120.0,112110.0,0.00347907]
[1760251902683,2.42758898,112120.0,112110.0,0.00347907]
[1760251902851,6.39115998,112120.0,112110.0,0.00347907]
[1760251903067,2.42758898,112120.0,112110.0,0.00347907]
[1760251903419,2.40829733,112120.0,112110.0,0.00347907]
[1760251903625,6.37186833,112120.0,112110.0,0.00347907]
[1760251903982,2.40829733,112120.0,112110.0,0.00347907]
[1760251904188,6.37186833,112120.0,112110.0,0.00347907]
[1760251904707,2.40829733,112120.0,112110.0,0.00347907]
[1760251905111,6.37186833,112120.0,112110.0,0.00347907]
[1760251905270,6.34501651,112120.0,112110.0,0.00347907]
[1760251905469,2.38144551,112120.0,112110.0,0.00347907]
[1760251905711,6.34501651,112120.0,112110.0,0.00347907]
[1760251906815,2.38144551,112120.0,112110.0,0.00347907]
[1760251907283,6.34501651,112120.0,112110.0,0.00347907]
[1760251908085,2.38144551,112120.0,112110.0,0.00347907]
[1760251908275,6.34501651,112120.0,112110.0,0.00347907]
[1760251909099,2.38144551,112120.0,112110.0,0.00347907]
[1760251909259,6.34502392,112120.0,112110.0,0.00347907]
[1760251909672,2.38145292,112120.0,112110.0,0.00347907]
[1760251910038,6.34502392,112120.0,112110.0,0.00347907]
[1760251910231,6.25630458,112120.0,112110.0,0.00347907]
[1760251911299,2.29273358,112120.0,112110.0,0.00347907]
[1760251911503,6.25630458,112120.0,112110.0,0.00347907]
[1760251911700,2.29273358,112120.0,112110.0,0.00347907]
[1760251911915,6.25630458,112120.0,112110.0,0.00347907]
[1760251912117,2.38145292,112120.0,112110.0,0.00347907]
[1760251912318,6.83759476,112120.0,112110.0,0.00347907]
[1760251912528,6.25630458,112120.0,112110.0,0.00347907]
[1760251912707,6.27559038,112120.0,112110.0,0.00347907]
[1760251913091,2.31201938,112120.0,112110.0,0.00347907]
[1760251913298,6.27559038,112120.0,112110.0,0.00347907]
[1760251913553,2.40073872,112120.0,112110.0,0.00347907]
[1760251913900,6.36430972,112120.0,112110.0,0.00347907]
[1760251914513,6.34502392,112120.0,112110.0,0.00347907]
[1760251915399,2.38145292,112120.0,112110.0,0.00347907]
[1760251915598,6.34502392,112120.0,112110.0,0.00347907]
[1760251916005,6.25630458,112120.0,112110.0,0.00347907]
[1760251918089,2.29273358,112120.0,112110.0,0.00347907]
[1760251918325,6.25630458,112120.0,112110.0,0.00347907]
[1760251919679,2.29273358,112120.0,112110.0,0.00347907]
[1760251919885,6.25630458,112120.0,112110.0,0.00347907]
[1760251920096,6.34502392,112120.0,112110.0,0.00347907]
[1760251920297,2.38145292,112120.0,112110.0,0.00347907]
[1760251920504,6.34502392,112120.0,112110.0,0.00347907]
[1760251921201,2.40073732,112120.0,112110.0,0.00347907]
[1760251921629,6.36430832,112120.0,112110.0,0.00347907]
[1760251922281,2.99039774,112120.0,112110.0,0.00347907]
[1760251922520,8.17383189,112120.0,112110.0,0.00347907]
[1760251922740,8.20068861,112120.0,112110.0,0.00347907]
[1760251923176,4.2621176,112120.0,112110.0,0.00347907]
[1760251923614,8.2256886,112120.0,112110.0,0.00347907]
[1760251923855,8.2266886,112120.0,112110.0,0.00347907]
[1760251924280,8.2286886,112120.0,112110.0,0.00347907]
[1760251924926,4.2651176,112120.0,112110.0,0.00347907]
[1760251925134,8.2286886,112120.0,112110.0,0.00347907]
[1760251925339,8.2426822,112120.0,112110.0,0.00347907]
[1760251926211,8.22158701,112120.0,112110.0,0.00347907]
[1760251926437,8.28899543,112120.0,112110.0,0.00347907]
[1760251926647,8.26758397,112120.0,112110.0,0.00347907]
[1760251927087,1.6810084,112090.0,112080.0,0.03110269]
[1760251927299,5.6445794,112090.0,112080.0,0.03110269]
[1760251927506,0.17844396,112080.0,112070.0,0.22311158]
[1760251927724,1.34102432,112080.0,112070.0,0.23858158]
[1760251928571,1.68102432,112080.0,112070.0,0.23858158]
[1760251928782,1.68102432,112080.0,112070.0,0.23908062]
[1760251932910,0.34,112080.0,112070.0,0.23908062]
[1760251933197,1.50258036,112080.0,112070.0,0.24140145]
[1760251934078,0.34,112080.0,112070.0,0.24140145]
[1760251934288,1.50258036,112080.0,112070.0,0.24140145]
[1760251937952,1.51387162,112080.0,112070.0,0.24140145]
[1760251938283,1.69231558,112080.0,112070.0,0.03002987]
[1760251938488,2.27360576,112080.0,112070.0,0.00281987]
[1760251938611,2.27360576,112080.0,112070.0,0.18127976]
[1760251939069,2.27360576,112080.0,112070.0,0.19674976]
[1760251939441,1.68102432,112080.0,112070.0,0.20914976]
[1760251939642,1.50258036,112080.0,112070.0,0.23366976]
[1760251939902,1.68102432,112080.0,112070.0,0.23366976]
[1760251941150,1.34102432,112080.0,112070.0,0.20914976]
[1760251941784,1.34102432,112080.0,112070.0,0.03068987]
[1760251941983,1.9223145,112080.0,112070.0,0.00281987]
[1760251942187,1.9223145,112080.0,112070.0,0.01828987]
[1760251942811,1.9223145,112080.0,112070.0,0.19674976]
[1760251943043,1.34102432,112080.0,112070.0,0.19674976]
[1760251943815,1.34102432,112080.0,112070.0,0.20914976]
[1760251944490,5.97460484,112080.0,112070.0,0.00281987]
[1760251944690,5.8858855,112080.0,112070.0,0.00281987]
[1760251945348,7.62975604,112080.0,112070.0,0.00281987]
[1760251945805,5.8858855,112080.0,112070.0,0.00281987]
[1760251946446,2.2623145,112080.0,112070.0,0.00281987]
[1760251946653,2.35103384,112080.0,112070.0,0.00281987]
[1760251946907,6.31460484,112080.0,112070.0,0.00281987]
[1760251947159,6.31560484,112080.0,112070.0,0.00281987]
[1760251947873,2.35303384,112080.0,112070.0,0.00281987]
[1760251948104,6.31660484,112080.0,112070.0,0.00281987]
[1760251948564,8.06047538,112080.0,112070.0,0.00281987]
[1760251949066,2.35303384,112080.0,112070.0,0.00281987]
[1760251949336,6.31660484,112080.0,112070.0,0.00281987]
[1760251952251,2.35303384,112080.0,112070.0,0.00281987]
[1760251952454,6.31660484,112080.0,112070.0,0.00281987]
[1760251953295,2.35303384,112080.0,112070.0,0.00281987]
[1760251953501,6.31660484,112080.0,112070.0,0.00281987]
[1760251954119,2.35303384,112080.0,112070.0,0.00281987]
[1760251954320,6.31660484,112080.0,112070.0,0.00281987]
[1760251956339,8.06047538,112080.0,112070.0,0.00281987]
[1760251957366,8.06047538,112080.0,112070.0,0.00252239]
[1760251957516,6.31858868,112080.0,112070.0,0.00252239]
[1760251957921,2.35501768,112080.0,112070.0,0.00252239]
[1760251958146,6.31858868,112080.0,112070.0,0.00252239]
[1760251959232,5.73663722,112080.0,112070.0,0.00252239]
[1760251959428,1.77306622,112080.0,112070.0,0.00252239]
[1760251959613,5.64791788,112080.0,112070.0,0.00252239]
[1760251961811,1.68434688,112080.0,112070.0,0.00252239]
[1760251962231,5.64791788,112080.0,112070.0,0.00252239]
[1760251962843,1.68434688,112080.0,112070.0,0.00252239]
[1760251963052,5.64791788,112080.0,112070.0,0.00252239]
[1760251963501,1.7287189,112080.0,112070.0,0.00252239]
[1760251963701,1.81743824,112080.0,112070.0,0.00252239]
[1760251963910,5.78100924,112080.0,112070.0,0.00252239]
[1760251964220,1.81743824,112080.0,112070.0,0.00252239]
[1760251964405,5.78100924,112080.0,112070.0,0.00252239]
[1760251964607,1.81743824,112080.0,112070.0,0.00252239]
[1760251964830,5.78100561,112080.0,112070.0,0.00252239]
[1760251965728,1.81743461,112080.0,112070.0,0.00252239]
[1760251965924,5.78100561,112080.0,112070.0,0.00252239]
[1760251967199,1.84429682,112080.0,112070.0,0.00252239]
[1760251967405,5.80786782,112080.0,112070.0,0.00252239]
[1760251967615,1.84429682,112080.0,112070.0,0.00252239]
[1760251967823,5.80786782,112080.0,112070.0,0.00252239]
[1760251968266,5.71914848,112080.0,112070.0,0.00252239]
[1760251969396,1.72392483,112080.0,112070.0,0.00252239]
[1760251969645,5.68749583,112080.0,112070.0,0.00252239]
[1760251970362,1.70464845,112080.0,112070.0,0.00252239]
[1760251970776,5.66821945,112080.0,112070.0,0.00252239]
[1760251970979,1.70464845,112080.0,112070.0,0.00252239]
[1760251971188,5.66821945,112080.0,112070.0,0.00252239]
[1760251971397,1.70464845,112080.0,112070.0,0.00252239]
[1760251971833,5.66821945,112080.0,112070.0,0.00252239]
[1760251972459,5.75693879,112080.0,112070.0,0.00252239]
[1760251972671,1.79336779,112080.0,112070.0,0.00252239]
[1760251973294,5.75693879,112080.0,112070.0,0.00252239]
[1760251973459,5.66821945,112080.0,112070.0,0.00252239]
[1760251974415,5.68748059,112080.0,112070.0,0.00252239]
[1760251976198,5.66821945,112080.0,112070.0,0.00252239]
[1760251977430,1.70464845,112080.0,112070.0,0.00252239]
[1760251977705,5.66821945,112080.0,112070.0,0.00252239]
[1760251978111,5.75693879,112080.0,112070.0,0.00252239]
[1760251979248,5.75693879,112080.0,112070.0,0.05439239]
[1760251979249,1.11433178,112080.0,112070.0,0.05439239]
[1760251979460,1.69628324,112080.0,112070.0,0.05439239]
[1760251979662,1.69628324,112080.0,112070.0,0.03012239]
[1760251979865,1.67955644,112080.0,112070.0,0.03012239]
[1760251980042,1.67855644,112080.0,112070.0,0.03012239]
[1760251980270,1.67855644,112080.0,112070.0,0.05439239]
[1760251981324,1.76727578,112080.0,112070.0,0.05439239]
[1760251981500,1.76627578,112080.0,112070.0,0.05439239]
[1760251982189,1.76627578,112080.0,112070.0,0.03012239]
[1760251982895,1.67755644,112080.0,112070.0,0.03012239]
[1760251984577,1.67755644,112080.0,112070.0,0.05439239]
[1760251985338,1.67755644,112080.0,112070.0,0.03012239]
[1760251985512,1.67755644,112080.0,112070.0,0.05439239]
[1760251986998,1.67755644,112080.0,112070.0,0.03012239]
[1760251987209,1.67755644,112080.0,112070.0,0.05475239]
[1760251987681,1.67755644,112080.0,112070.0,0.03012239]
[1760251988493,1.76627578,112080.0,112070.0,0.03012239]
[1760251989842,6.33689084,112080.0,112070.0,0.00252239]
[1760251990055,2.41945369,112080.0,112070.0,0.00252239]
[1760251990269,6.38302469,112080.0,112070.0,0.00252239]
[1760251990482,6.82042469,112080.0,112070.0,0.00252239]
[1760251991314,6.82142542,112080.0,112070.0,0.00252239]
[1760251991520,6.82042542,112080.0,112070.0,0.00252239]
[1760251991793,6.82242542,112080.0,112070.0,0.00252239]
[1760251992193,6.82142542,112080.0,112070.0,0.00252239]
[1760251992546,2.85885442,112080.0,112070.0,0.00252239]
[1760251992749,6.82242542,112080.0,112070.0,0.00252239]
[1760251993381,2.85885442,112080.0,112070.0,0.00252239]
[1760251993556,6.82242542,112080.0,112070.0,0.00252239]
[1760251993752,2.85885442,112080.0,112070.0,0.00252239]
[1760251993955,6.82242542,112080.0,112070.0,0.00252239]
[1760251994193,6.83642347,112080.0,112070.0,0.00252239]
[1760251995197,2.87285247,112080.0,112070.0,0.00252239]
[1760251995437,6.83642347,112080.0,112070.0,0.00252239]
[1760251995639,2.87285247,112080.0,112070.0,0.00252239]
[1760251995827,6.83642347,112080.0,112070.0,0.00252239]
[1760251997394,2.87285247,112080.0,112070.0,0.00252239]
[1760251997603,6.83642347,112080.0,112070.0,0.00252239]
[1760251998024,6.83642597,112080.0,112070.0,0.00252239]
[1760251998849,2.87285497,112080.0,112070.0,0.00252239]
[1760251999057,6.74770663,112080.0,112070.0,0.00252239]
[1760252001390,2.78413563,112080.0,112070.0,0.00252239]
[1760252001604,6.74770663,112080.0,112070.0,0.00252239]
[1760252002668,2.78413563,112080.0,112070.0,0.00252239]
[1760252002878,6.83642597,112080.0,112070.0,0.00252239]
[1760252003729,2.87285497,112080.0,112070.0,0.00252239]
[1760252003940,6.83642597,112080.0,112070.0,0.00252239]
[1760252005228,2.87285497,112080.0,112070.0,0.00252239]
[1760252005438,6.74770663,112080.0,112070.0,0.00252239]
[1760252006541,2.78413563,112080.0,112070.0,0.00252239]
[1760252006803,6.74770663,112080.0,112070.0,0.00252239]
[1760252008509,2.78413563,112080.0,112070.0,0.00252239]
[1760252008716,6.74770663,112080.0,112070.0,0.00252239]
[1760252009142,5.00185225,112080.0,112070.0,0.00252239]
[1760252009391,5.72835517,112080.0,112070.0,0.00252239]
[1760252009833,5.69508476,112080.0,112070.0,0.19776228]
[1760252010046,1.34434688,112080.0,112070.0,0.05641239]
[1760252010251,1.68234688,112080.0,112070.0,0.05641239]
[1760252010465,1.34334688,112080.0,112070.0,0.05641239]
[1760252010696,0.76239542,112080.0,112070.0,0.05641239]
[1760252010904,1.10139542,112080.0,112070.0,0.05641239]
[1760252011122,1.10039542,112080.0,112070.0,0.05641239]
[1760252011415,1.18911476,112080.0,112070.0,0.05641239]
[1760252011625,1.77106622,112080.0,112070.0,0.05641239]
[1760252012260,1.68234688,112080.0,112070.0,0.03178239]
[1760252012474,1.68234688,112080.0,112070.0,0.05641239]
[1760252013446,1.68234688,112080.0,112070.0,0.03178239]
[1760252016320,1.699075,112080.0,112070.0,0.03178239]
[1760252017395,1.699075,112080.0,112070.0,0.01500239]
[1760252017619,1.69849446,112080.0,112070.0,0.01500239]
[1760252017821,1.7872138,112080.0,112070.0,0.03114239]
[1760252018255,1.69849446,112080.0,112070.0,0.03114239]
[1760252020043,1.69849446,112080.0,112070.0,0.01500239]
[1760252020259,1.69849446,112080.0,112070.0,0.01866239]
[1760252021641,1.68176634,112080.0,112070.0,0.01866239]
[1760252022788,1.49068249,112080.0,112070.0,0.01866239]
[1760252022995,1.66912645,112080.0,112070.0,0.01866239]
[1760252027246,1.66912645,112080.0,112070.0,0.00252239]
[1760252027445,1.66912645,112080.0,112070.0,0.01886239]
[1760252027649,0.50580407,112080.0,112070.0,0.03062239]
[1760252027850,1.66912645,112080.0,112070.0,0.03062239]
[1760252037990,1.66912645,112080.0,112070.0,0.00252239]
[1760252038415,1.68587753,112080.0,112070.0,0.00252239]
[1760252040238,2.26753872,112080.0,112070.0,0.00252239]
[1760252041803,0.52255515,112080.0,112070.0,0.01886239]
[1760252042007,1.68587753,112080.0,112070.0,0.03062239]
[1760252044312,1.68587753,112080.0,112070.0,0.00252239]
[1760252047315,1.68587753,112080.0,112070.0,0.01861239]
[1760252047828,1.68587753,112080.0,112070.0,0.00252239]
[1760252049782,1.68587753,112080.0,112070.0,0.03054239]
[1760252052139,1.68587753,112080.0,112070.0,0.05361239]
[1760252053328,0.01399604,112100.0,112070.0,0.3134499]
[1760252053531,0.58166119,112080.0,112070.0,0.27021309]
[1760252053877,0.76899476,112100.0,112080.0,0.17843199]
[1760252054073,0.92166119,112090.0,112080.0,0.21343199]
[1760252054280,0.93842022,112090.0,112080.0,0.22952199]
[1760252054477,0.92166119,112090.0,112080.0,0.22952199]
[1760252055153,0.34,112090.0,112080.0,0.22952199]
[1760252055338,0.92166119,112090.0,112080.0,0.22952199]
[1760252062386,0.34,112090.0,112080.0,0.22952199]
[1760252062563,0.92166119,112090.0,112080.0,0.22952199]
[1760252062785,0.92166119,112090.0,112080.0,0.23126246]
[1760252063760,1.10008923,112090.0,112080.0,0.23126246]
[1760252068576,0.92166119,112090.0,112080.0,0.23126246]
[1760252069210,0.92166119,112090.0,112080.0,0.27735534]
[1760252069414,0.92166119,112090.0,112080.0,0.23126246]
[1760252070741,0.58166119,112090.0,112080.0,0.23126246]
[1760252072437,1.10899476,112100.0,112090.0,0.17842804]
[1760252072613,1.71575865,112100.0,112090.0,0.22951804]
[1760252073391,1.69065595,112100.0,112090.0,0.22951804]
[1760252074683,1.69265595,112100.0,112090.0,0.22951804]
[1760252077568,1.69265595,112100.0,112090.0,0.02802]
[1760252077954,1.69265595,112100.0,112090.0,0.05334021]
[1760252078404,1.69265595,112100.0,112090.0,0.02918021]
[1760252079481,1.69265595,112100.0,112090.0,0.20760825]
[1760252079648,1.11074966,112100.0,112090.0,0.23176825]
[1760252083631,1.11074966,112100.0,112090.0,0.20760825]
[1760252084464,1.11074966,112100.0,112090.0,0.02918021]
[1760252085520,5.07432066,112100.0,112090.0,0.00116021]
[1760252085715,5.65573675,112100.0,112090.0,0.00116021]
[1760252086749,5.10117717,112100.0,112090.0,0.00116021]
[1760252088083,5.68259326,112100.0,112090.0,0.00116021]
[1760252088489,5.10117717,112100.0,112090.0,0.00116021]
[1760252088692,5.12627719,112100.0,112090.0,0.00116021]
[1760252089329,5.21499653,112100.0,112090.0,0.00116021]
[1760252089865,5.79641262,112100.0,112090.0,0.00116021]
[1760252094588,5.70769371,112100.0,112090.0,0.00116021]
[1760252095561,5.12627762,112100.0,112090.0,0.00116021]
[1760252095985,4.89440858,112100.0,112090.0,0.00116021]
[1760252096188,5.07282155,112100.0,112090.0,0.00116021]
[1760252097118,5.08174215,112100.0,112090.0,0.00116021]
[1760252100688,5.17046149,112100.0,112090.0,0.00116021]
[1760252100896,5.75187758,112100.0,112090.0,0.00116021]
[1760252101740,5.08174215,112100.0,112090.0,0.00116021]
[1760252103230,4.20486153,112100.0,112090.0,0.00116021]
[1760252103428,4.78627762,112100.0,112090.0,0.00116021]
[1760252104044,0.82270662,112100.0,112090.0,0.00116021]
[1760252104445,4.78627762,112100.0,112090.0,0.00116021]
[1760252105204,1.16270662,112100.0,112090.0,0.00116021]
[1760252105427,5.12627762,112100.0,112090.0,0.00116021]
[1760252106410,5.21499696,112100.0,112090.0,0.00116021]
[1760252107237,5.12627762,112100.0,112090.0,0.00116021]
[1760252107428,1.16270662,112100.0,112090.0,0.00116021]
[1760252107630,5.12627762,112100.0,112090.0,0.00116021]
[1760252110920,1.16270662,112100.0,112090.0,0.00116021]
[1760252111119,5.12627762,112100.0,112090.0,0.00116021]
[1760252111537,5.21499696,112100.0,112090.0,0.00116021]
[1760252112020,1.25142596,112100.0,112090.0,0.00116021]
[1760252112226,5.21499696,112100.0,112090.0,0.00116021]
[1760252112649,1.25142596,112100.0,112090.0,0.00116021]
[1760252112846,5.12628297,112100.0,112090.0,0.00116021]
[1760252113744,1.16271197,112100.0,112090.0,0.00116021]
[1760252114105,4.54486688,112100.0,112090.0,0.00116021]
[1760252114343,5.12628297,112100.0,112090.0,0.00116021]
[1760252114558,1.16271197,112100.0,112090.0,0.00116021]
[1760252114759,1.25143131,112100.0,112090.0,0.00116021]
[1760252114971,5.21500231,112100.0,112090.0,0.00116021]
[1760252115372,5.23430652,112100.0,112090.0,0.00116021]
[1760252115599,1.27073552,112100.0,112090.0,0.00116021]
[1760252116002,5.14558718,112100.0,112090.0,0.00116021]
[1760252116612,5.12628297,112100.0,112090.0,0.00116021]
[1760252117472,5.14558844,112100.0,112090.0,0.00116021]
[1760252117674,5.12885509,112100.0,112090.0,0.00116021]
[1760252117875,5.14561358,112100.0,112090.0,0.00116021]
[1760252118178,5.23433292,112100.0,112090.0,0.00116021]
[1760252119513,5.14561358,112100.0,112090.0,0.00116021]
[1760252120358,1.18204258,112100.0,112090.0,0.00116021]
[1760252120666,5.14561358,112100.0,112090.0,0.00116021]
[1760252121626,1.18204258,112100.0,112090.0,0.00116021]
[1760252121883,5.14561358,112100.0,112090.0,0.00116021]
[1760252122452,1.18204258,112100.0,112090.0,0.00116021]
[1760252122657,5.14561358,112100.0,112090.0,0.00116021]
[1760252122875,1.18204258,112100.0,112090.0,0.00116021]
[1760252123091,5.14561358,112100.0,112090.0,0.00116021]
[1760252123754,5.14561358,112100.0,112090.0,0.23169825]
[1760252123755,0.002,112100.0,112090.0,0.23169825]
[1760252123964,0.002,112100.0,112090.0,0.30408961]
[1760252124150,0.58341609,112100.0,112090.0,0.26185015]
[1760252124741,0.58241609,112100.0,112090.0,0.26185015]
[1760252125124,0.58241609,112100.0,112090.0,0.26285015]
[1760252125486,0.58141609,112100.0,112090.0,0.26285015]
[1760252125842,0.58141609,112100.0,112090.0,0.26385015]
[1760252126408,0.51839761,112110.0,112100.0,0.17841213]
[1760252126634,1.0998137,112110.0,112100.0,0.23052213]
[1760252127151,0.92141609,112110.0,112100.0,0.23052213]
[1760252127366,1.0998123,112110.0,112100.0,0.23052213]
[1760252127578,1.0998123,112110.0,112100.0,0.23152213]
[1760252127787,0.92141609,112110.0,112100.0,0.23152213]
[1760252129330,1.0998123,112110.0,112100.0,0.23152213]
[1760252130233,1.0998123,112110.0,112100.0,0.05311]
[1760252131900,1.0998123,112110.0,112100.0,0.05369005]
[1760252132605,1.18853164,112110.0,112100.0,0.05369005]
[1760252132801,1.0998123,112110.0,112100.0,0.02915005]
[1760252133013,1.68122839,112110.0,112100.0,0.02915005]
[1760252134410,1.68122839,112110.0,112100.0,0.05209005]
[1760252139723,1.68101573,112110.0,112100.0,0.05209005]
[1760252142664,1.09970597,112110.0,112100.0,0.05209005]
[1760252145085,1.18842531,112110.0,112100.0,0.02915005]
[1760252145288,1.18842531,112110.0,112100.0,0.05387005]
[1760252145793,1.18842531,112110.0,112100.0,0.05287005]
[1760252146893,1.09970597,112110.0,112100.0,0.05287005]
[1760252152406,1.10807884,112110.0,112100.0,0.05287005]
[1760252153325,1.12483418,112110.0,112100.0,0.05287005]
[1760252153984,0.54352442,112110.0,112100.0,0.05287005]
[1760252154184,1.12483418,112110.0,112100.0,0.05287005]
[1760252155550,1.09970597,112110.0,112100.0,0.05287005]
[1760252157768,1.09970597,112110.0,112100.0,0.00058005]
[1760252157904,1.09970597,112110.0,112100.0,0.02908005]
[1760252158313,1.09970597,112110.0,112100.0,0.05380005]
[1760252159820,1.09970597,112110.0,112100.0,0.02908005]
[1760252160031,1.09970597,112110.0,112100.0,0.05380005]
[1760252160869,1.09970597,112110.0,112100.0,0.02908005]
[1760252161293,1.09970597,112110.0,112100.0,0.05380005]
[1760252161717,1.09970597,112110.0,112100.0,0.02908005]
[1760252161937,1.09970597,112110.0,112100.0,0.00058005]
[1760252161938,5.64458673,112110.0,112100.0,0.00058005]
[1760252162692,5.67143841,112110.0,112100.0,0.00058005]
[1760252163767,5.69655581,112110.0,112100.0,0.00058005]
[1760252164489,6.31867405,112110.0,112100.0,1e-08]
[1760252164914,6.27786557,112110.0,112100.0,1e-08]
[1760252165125,6.38587608,112110.0,112100.0,1e-08]
[1760252165341,4.56722202,112110.0,112100.0,1e-08]
[1760252165543,5.10512321,112110.0,112100.0,0.01601001]
[1760252165958,5.09112865,112110.0,112100.0,0.02850001]
[1760252166454,1.12755765,112110.0,112100.0,0.05322001]
[1760252166815,1.70886741,112110.0,112100.0,1e-08]
[1760252167016,1.79758675,112110.0,112100.0,0.01616001]
[1760252167631,1.79658675,112110.0,112100.0,1e-08]
[1760252167834,5.76115775,112110.0,112100.0,1e-08]
[1760252168193,5.78726658,112110.0,112100.0,1e-08]
[1760252168470,5.78526658,112110.0,112100.0,1e-08]
[1760252168721,5.76852736,112110.0,112100.0,1e-08]
[1760252169557,5.76015775,112110.0,112100.0,1e-08]
[1760252169761,5.76852646,112110.0,112100.0,1e-08]
[1760252169942,5.76015775,112110.0,112100.0,1e-08]
[1760252170140,5.76852646,112110.0,112100.0,1e-08]
[1760252170484,5.76015775,112110.0,112100.0,1e-08]
[1760252170909,5.78526178,112110.0,112100.0,1e-08]
[1760252171135,5.76852576,112110.0,112100.0,1e-08]
[1760252171311,5.67980642,112110.0,112100.0,1e-08]
[1760252171509,5.67143841,112110.0,112100.0,1e-08]
[1760252173283,1.12655765,112110.0,112100.0,0.04995001]
[1760252177838,1.12655765,112110.0,112100.0,0.02742001]
[1760252178462,1.70786741,112110.0,112100.0,1e-08]
[1760252178682,1.79658675,112110.0,112100.0,1e-08]
[1760252181182,1.82169265,112110.0,112100.0,1e-08]
[1760252181788,1.82169229,112110.0,112100.0,1e-08]
[1760252183583,1.73297295,112110.0,112100.0,1e-08]
[1760252186562,5.69654395,112110.0,112100.0,1e-08]
[1760252190751,5.69641423,112110.0,112100.0,1e-08]
[1760252198185,5.69641423,112110.0,112100.0,0.01211001]
[1760252198371,5.69641423,112110.0,112100.0,1e-08]
[1760252201105,5.78513357,112110.0,112100.0,1e-08]
[1760252201666,5.78528863,112110.0,112100.0,1e-08]
[1760252202589,6.38819308,112110.0,112100.0,1e-08]
[1760252202767,6.40747475,112110.0,112100.0,1e-08]
[1760252203191,5.82608746,112110.0,112100.0,1e-08]
[1760252203597,5.82708746,112110.0,112100.0,1e-08]
[1760252203800,5.82808746,112110.0,112100.0,1e-08]
[1760252204021,5.8065703,112110.0,112100.0,1e-08]
[1760252205161,5.8055703,112110.0,112100.0,1e-08]
[1760252205604,5.37798068,112110.0,112100.0,1e-08]
[1760252205802,5.35869901,112110.0,112100.0,1e-08]
[1760252207270,5.35769901,112110.0,112100.0,1e-08]
[1760252207697,5.69869901,112110.0,112100.0,1e-08]
[1760252208326,5.69869901,112110.0,112100.0,0.01502001]
[1760252208327,5.67084733,112110.0,112100.0,0.01502001]
[1760252208528,5.67084733,112110.0,112100.0,0.05192001]
[1760252208731,5.67184733,112110.0,112100.0,0.02708001]
[1760252209390,5.09046004,112110.0,112100.0,0.02708001]
[1760252210108,5.67184733,112110.0,112100.0,0.02708001]
[1760252210402,5.09046004,112110.0,112100.0,0.02708001]
[1760252210997,5.67184733,112110.0,112100.0,0.02708001]
[1760252211594,5.76056667,112110.0,112100.0,0.02708001]
[1760252212019,5.76056546,112110.0,112100.0,0.02708001]
[1760252212598,5.67184612,112110.0,112100.0,0.02708001]
[1760252212801,5.67184612,112110.0,112100.0,1e-08]
[1760252214177,5.67184612,112110.0,112100.0,0.01502001]
[1760252214592,5.67184612,112110.0,112100.0,1e-08]
[1760252215990,5.69112705,112110.0,112100.0,1e-08]
[1760252216187,5.77984639,112110.0,112100.0,1e-08]
[1760252216423,5.76056546,112110.0,112100.0,1e-08]
[1760252216594,5.77985012,112110.0,112100.0,1e-08]
[1760252220148,5.77985461,112110.0,112100.0,1e-08]
[1760252224247,5.80670924,112110.0,112100.0,1e-08]
[1760252246415,5.7179899,112110.0,112100.0,1e-08]
[1760252256909,6.29937719,112110.0,112100.0,1e-08]
[1760252257095,4.62016447,112110.0,112100.0,1e-08]
[1760252257289,6.34333989,112110.0,112100.0,1e-08]
[1760252257831,6.35733445,112110.0,112100.0,1e-08]
[1760252258081,6.44605379,112110.0,112100.0,1e-08]
[1760252258517,6.46704024,112110.0,112100.0,1e-08]
[1760252260060,6.45304568,112110.0,112100.0,1e-08]
[1760252263584,8.21230099,112110.0,112100.0,1e-08]
[1760252263725,6.46813912,112110.0,112100.0,1e-08]
[1760252264633,6.44715267,112110.0,112100.0,1e-08]
[1760252265129,6.4272909,112110.0,112100.0,1e-08]
[1760252266543,6.4272668,112110.0,112100.0,1e-08]
[1760252269105,8.17252643,112110.0,112100.0,1e-08]
[1760252269510,6.4272668,112110.0,112100.0,1e-08]
[1760252271593,6.33854746,112110.0,112100.0,1e-08]
[1760252271791,6.31444653,112110.0,112100.0,1e-08]
[1760252273853,6.11155832,112110.0,112100.0,1e-08]
[1760252273997,6.28995453,112110.0,112100.0,1e-08]
[1760252289529,8.05931509,112110.0,112100.0,1e-08]
[1760252289767,8.14803443,112110.0,112100.0,1e-08]
[1760252290093,6.4027748,112110.0,112100.0,1e-08]
[1760252291124,7.01467991,112110.0,112100.0,1e-08]
[1760252291348,0.51847581,112060.0,112050.0,0.07202362]
[1760252291549,6.20281444,112060.0,112050.0,0.07217336]
[1760252291669,2.26373544,112060.0,112050.0,0.07217336]
[1760252291872,6.20281444,112060.0,112050.0,0.00054974]
[1760252292114,6.22967872,112060.0,112050.0,0.00054974]
[1760252292672,2.29059972,112060.0,112050.0,0.00054974]
[1760252292874,6.22967872,112060.0,112050.0,0.00054974]
[1760252293070,2.29059972,112060.0,112050.0,0.00054974]
[1760252293313,6.22967872,112060.0,112050.0,0.00054974]
[1760252293512,6.23067872,112060.0,112050.0,0.00054974]
[1760252294279,6.24467742,112060.0,112050.0,0.00054974]
[1760252294705,6.25596868,112060.0,112050.0,0.00054974]
[1760252294937,6.24467742,112060.0,112050.0,0.00054974]
[1760252295529,2.30559842,112060.0,112050.0,0.00054974]
[1760252295736,6.24467742,112060.0,112050.0,0.00054974]
[1760252296557,2.30559842,112060.0,112050.0,0.00054974]
[1760252296795,2.30559842,112060.0,112050.0,0.00345143]
[1760252297001,6.24467742,112060.0,112050.0,0.00345143]
[1760252297261,6.2270303,112060.0,112050.0,0.00345143]
[1760252299369,2.2879513,112060.0,112050.0,0.00345143]
[1760252299908,6.2270303,112060.0,112050.0,0.00345143]
[1760252301523,6.31574964,112060.0,112050.0,0.00345143]